[Event "*** Titled Tuesday Blitz"]
[Site "Chess.com"]
[Date "2021.03.16"]
[Round "8"]
[White "alexrustemov"]
[Black "vinniethepooh"]
[Result "0-1"]
[WhiteElo "2771"]
[BlackElo "2716"]
[TimeControl "180+1"]
[EndTime "11:28:33 PDT"]
[Termination "vinniethepooh won by checkmate"]

1. d4 {[%clk 0:03:00.9]} 1... Nf6 {[%clk 0:03:00]} 2. Nf3 {[%clk 0:03:00.3]}
2... d5 {[%clk 0:03:00.1]} 3. c4 {[%clk 0:03:00.5]} 3... e6 {[%clk 0:03:00.7]}
4. Nc3 {[%clk 0:02:59.3]} 4... c6 {[%clk 0:03:00.8]} 5. e3 {[%clk 0:02:58]} 5...
Nbd7 {[%clk 0:03:00.8]} 6. Qc2 {[%clk 0:02:58.2]} 6... Bd6 {[%clk 0:03:00.9]} 7.
Bd2 {[%clk 0:02:58]} 7... O-O {[%clk 0:03:01]} 8. O-O-O {[%clk 0:02:58.7]} 8...
b5 {[%clk 0:02:44.2]} 9. e4 {[%clk 0:02:58.4]} 9... Nxe4 {[%clk 0:02:27.5]} 10.
Nxe4 {[%clk 0:02:56.5]} 10... dxe4 {[%clk 0:02:28.4]} 11. Qxe4 {[%clk 0:02:57]}
11... bxc4 {[%clk 0:02:26]} 12. Bxc4 {[%clk 0:02:57]} 12... Qb6 {[%clk
0:02:03.9]} 13. Ne5 {[%clk 0:02:54]} 13... Rb8 {[%clk 0:01:56]} 14. Bb3 {[%clk
0:02:45.1]} 14... Bxe5 {[%clk 0:01:47.8]} 15. dxe5 {[%clk 0:02:46]} 15... Nc5
{[%clk 0:01:48.2]} 16. Qc2 {[%clk 0:02:39]} 16... Nxb3+ {[%clk 0:01:46.7]} 17.
Qxb3 {[%clk 0:02:36.9]} 17... Qxb3 {[%clk 0:01:40.8]} 18. axb3 {[%clk
0:02:37.8]} 18... Rxb3 {[%clk 0:01:41.7]} 19. Be3 {[%clk 0:02:28.1]} 19... a5
{[%clk 0:01:36.1]} 20. Rd6 {[%clk 0:02:26.4]} 20... Bb7 {[%clk 0:01:28.3]} 21.
Kc2 {[%clk 0:02:12.8]} 21... Rb5 {[%clk 0:01:27.1]} 22. Rd7 {[%clk 0:01:46.4]}
22... c5 {[%clk 0:01:23.2]} 23. f3 {[%clk 0:01:45.2]} 23... Bd5 {[%clk
0:01:22.8]} 24. Ra1 {[%clk 0:01:27.1]} 24... Rfb8 {[%clk 0:01:21.3]} 25. Bc1
{[%clk 0:01:27.1]} 25... h5 {[%clk 0:01:17.5]} 26. Ra7 {[%clk 0:01:25.6]} 26...
a4 {[%clk 0:01:17.9]} 27. Ra3 {[%clk 0:01:24.9]} 27... Rb4 {[%clk 0:01:14.5]}
28. Rc3 {[%clk 0:01:21.8]} 28... R8b5 {[%clk 0:00:59.7]} 29. Rc7 {[%clk
0:01:17.3]} 29... Bb3+ {[%clk 0:00:55.7]} 30. Kd2 {[%clk 0:01:15.8]} 30... Rd4+
{[%clk 0:00:54.3]} 31. Ke3 {[%clk 0:01:16]} 31... Rd5 {[%clk 0:00:53.5]} 32. f4
{[%clk 0:01:15.1]} 32... c4 {[%clk 0:00:45.2]} 33. h3 {[%clk 0:01:09.2]} 33...
Rb8 {[%clk 0:00:45.1]} 34. g4 {[%clk 0:01:08.9]} 34... Rbd8 {[%clk 0:00:43.3]}
35. Ke2 {[%clk 0:01:04.6]} 35... Rd3 {[%clk 0:00:39]} 36. Be3 {[%clk 0:00:50.4]}
36... hxg4 {[%clk 0:00:30.6]} 37. hxg4 {[%clk 0:00:49.6]} 37... a3 {[%clk
0:00:23.4]} 38. Bc1 {[%clk 0:00:34.9]} 38... axb2 {[%clk 0:00:17.5]} 39. Bxb2
{[%clk 0:00:22.3]} 39... Rd2+ {[%clk 0:00:17.8]} 40. Ke3 {[%clk 0:00:21.9]}
40... Rxb2 {[%clk 0:00:18.7]} 41. f5 {[%clk 0:00:22.3]} 41... Rbd2 {[%clk
0:00:16.2]} 42. Kf4 {[%clk 0:00:22.1]} 42... R8d3 {[%clk 0:00:12.6]} 43. Rc8+
{[%clk 0:00:20.5]} 43... Kh7 {[%clk 0:00:12.4]} 44. Rc1 {[%clk 0:00:21.4]} 44...
Rh3 {[%clk 0:00:07.4]} 45. Rc7 {[%clk 0:00:19.7]} 45... exf5 {[%clk 0:00:07.5]}
46. gxf5 {[%clk 0:00:18.9]} 46... Rd4+ {[%clk 0:00:08]} 47. Kg5 {[%clk
0:00:16.9]} 47... Rg3+ {[%clk 0:00:08.6]} 48. Kh5 {[%clk 0:00:17.3]} 48... Rh3+
{[%clk 0:00:09.5]} 49. Kg5 {[%clk 0:00:17.5]} 49... Rg3+ {[%clk 0:00:10.4]} 50.
Kh5 {[%clk 0:00:18]} 50... Bd1+ {[%clk 0:00:10.6]} 51. Rxd1 {[%clk 0:00:15.1]}
51... Rxd1 {[%clk 0:00:11.5]} 52. Kh4 {[%clk 0:00:15.5]} 52... Rg2 {[%clk
0:00:11.3]} 53. Kh3 {[%clk 0:00:15.6]} 53... Rg5 {[%clk 0:00:11.6]} 54. Rxf7
{[%clk 0:00:15.8]} 54... Rh1# {[%clk 0:00:11.5]} 0-1

[Event "*** Titled Tuesday Blitz"]
[Site "Chess.com"]
[Date "2021.03.16"]
[Round "8"]
[White "ShahMatKanal"]
[Black "tylityli"]
[Result "1-0"]
[WhiteElo "2461"]
[BlackElo "2281"]
[TimeControl "180+1"]
[EndTime "11:28:33 PDT"]
[Termination "ShahMatKanal won by resignation"]

1. c4 {[%clk 0:03:00.9]} 1... c5 {[%clk 0:02:59.1]} 2. g3 {[%clk 0:02:59.8]}
2... Nf6 {[%clk 0:02:59.1]} 3. Bg2 {[%clk 0:03:00.7]} 3... d5 {[%clk 0:02:58.6]}
4. cxd5 {[%clk 0:03:00.5]} 4... Nxd5 {[%clk 0:02:59.5]} 5. Nc3 {[%clk
0:03:01.3]} 5... Nc7 {[%clk 0:02:58.7]} 6. Nh3 {[%clk 0:03:00.7]} 6... e5 {[%clk
0:02:57]} 7. O-O {[%clk 0:02:58.9]} 7... Be7 {[%clk 0:02:56.8]} 8. d3 {[%clk
0:02:52.5]} 8... O-O {[%clk 0:02:52.3]} 9. f4 {[%clk 0:02:52.7]} 9... Nd7 {[%clk
0:02:46.5]} 10. Qb3 {[%clk 0:02:31.4]} 10... Rb8 {[%clk 0:02:44.5]} 11. fxe5
{[%clk 0:02:24]} 11... Nxe5 {[%clk 0:02:42.8]} 12. Bf4 {[%clk 0:02:21.3]} 12...
Ng6 {[%clk 0:02:42.6]} 13. Be3 {[%clk 0:01:48.4]} 13... b6 {[%clk 0:02:28.4]}
14. Nf4 {[%clk 0:01:44.7]} 14... Nxf4 {[%clk 0:02:27.2]} 15. Bxf4 {[%clk
0:01:40]} 15... Be6 {[%clk 0:02:22.5]} 16. Qa4 {[%clk 0:01:37]} 16... a5 {[%clk
0:02:13.2]} 17. Qc6 {[%clk 0:01:24.6]} 17... Rc8 {[%clk 0:01:39]} 18. Qxb6
{[%clk 0:01:24.2]} 18... g5 {[%clk 0:01:28.2]} 19. Be3 {[%clk 0:01:11.2]} 19...
Rb8 {[%clk 0:01:11.9]} 20. Qxa5 {[%clk 0:01:07.8]} 20... Rxb2 {[%clk 0:01:09.6]}
21. Rac1 {[%clk 0:00:56.3]} 21... Nd5 {[%clk 0:00:44.1]} 22. Qxd8 {[%clk
0:00:55.4]} 22... Rxd8 {[%clk 0:00:42.7]} 23. Nxd5 {[%clk 0:00:54.3]} 23... Bxd5
{[%clk 0:00:42.4]} 24. Bxc5 {[%clk 0:00:43.2]} 24... Bxc5+ {[%clk 0:00:38.5]}
25. Rxc5 {[%clk 0:00:42.5]} 25... Bxg2 {[%clk 0:00:37.1]} 26. Kxg2 {[%clk
0:00:43.4]} 26... Rxe2+ {[%clk 0:00:36.3]} 27. Rf2 {[%clk 0:00:43.4]} 27...
Rxf2+ {[%clk 0:00:34.6]} 28. Kxf2 {[%clk 0:00:44.3]} 28... Rxd3 {[%clk
0:00:34.6]} 29. Rxg5+ {[%clk 0:00:44]} 29... Kf8 {[%clk 0:00:34.4]} 30. Re5
{[%clk 0:00:41.6]} 30... Ra3 {[%clk 0:00:32.5]} 31. Re2 {[%clk 0:00:41.8]} 31...
Kg7 {[%clk 0:00:32.4]} 32. Ke1 {[%clk 0:00:37]} 32... Kg6 {[%clk 0:00:31.4]} 33.
Kd1 {[%clk 0:00:37.1]} 33... f5 {[%clk 0:00:31.8]} 34. Kc1 {[%clk 0:00:37.3]}
34... Kg5 {[%clk 0:00:32.2]} 35. Kb2 {[%clk 0:00:37.6]} 35... Ra6 {[%clk
0:00:31.2]} 36. a3 {[%clk 0:00:36.1]} 36... h5 {[%clk 0:00:30.1]} 37. Kb3 {[%clk
0:00:35.8]} 37... h4 {[%clk 0:00:30.5]} 38. a4 {[%clk 0:00:24.2]} 38... Kg4
{[%clk 0:00:28.9]} 39. Re3 {[%clk 0:00:22.5]} 39... f4 {[%clk 0:00:25.1]} 40.
gxf4 {[%clk 0:00:19.9]} 40... Kxf4 {[%clk 0:00:26]} 41. Rc3 {[%clk 0:00:17.7]}
41... Re6 {[%clk 0:00:23.3]} 42. a5 {[%clk 0:00:15.9]} 42... Kg4 {[%clk
0:00:17.7]} 43. h3+ {[%clk 0:00:15.9]} 43... Kf4 {[%clk 0:00:17.3]} 44. Kb4
{[%clk 0:00:16.8]} 44... Re1 {[%clk 0:00:14.7]} 45. a6 {[%clk 0:00:15.5]} 45...
Rb1+ {[%clk 0:00:12.9]} 46. Rb3 {[%clk 0:00:15.8]} 46... Ra1 {[%clk 0:00:13.2]}
47. Ra3 {[%clk 0:00:15.6]} 47... Rb1+ {[%clk 0:00:13.3]} 48. Ka5 {[%clk
0:00:15.8]} 48... Rb8 {[%clk 0:00:09.8]} 49. a7 {[%clk 0:00:16.1]} 49... Ra8
{[%clk 0:00:10.1]} 50. Kb6 {[%clk 0:00:16.2]} 50... Ke4 {[%clk 0:00:10.3]} 51.
Kb7 {[%clk 0:00:15.8]} 1-0

[Event "*** Titled Tuesday Blitz"]
[Site "Chess.com"]
[Date "2021.03.16"]
[Round "8"]
[White "lukazz029"]
[Black "Aradhya2000"]
[Result "1-0"]
[WhiteElo "2258"]
[BlackElo "2563"]
[TimeControl "180+1"]
[EndTime "11:28:35 PDT"]
[Termination "lukazz029 won by checkmate"]

1. e4 {[%clk 0:03:00.9]} 1... e5 {[%clk 0:02:59.8]} 2. Nf3 {[%clk 0:02:55.1]}
2... Nc6 {[%clk 0:02:59.9]} 3. Bb5 {[%clk 0:02:54.1]} 3... a6 {[%clk 0:02:59.6]}
4. Ba4 {[%clk 0:02:54.4]} 4... Nf6 {[%clk 0:02:59.5]} 5. O-O {[%clk 0:02:54.4]}
5... b5 {[%clk 0:02:59.6]} 6. Bb3 {[%clk 0:02:53.5]} 6... Bc5 {[%clk 0:03:00.1]}
7. c3 {[%clk 0:02:53.5]} 7... d6 {[%clk 0:02:59.9]} 8. d3 {[%clk 0:02:52]} 8...
O-O {[%clk 0:02:57.7]} 9. h3 {[%clk 0:02:52.5]} 9... Ne7 {[%clk 0:02:54.6]} 10.
Re1 {[%clk 0:02:52.7]} 10... Ng6 {[%clk 0:02:54.6]} 11. Nbd2 {[%clk 0:02:50.5]}
11... Nh5 {[%clk 0:02:29.2]} 12. Nf1 {[%clk 0:02:30.5]} 12... Nhf4 {[%clk
0:02:29.1]} 13. d4 {[%clk 0:02:27.9]} 13... Bb6 {[%clk 0:02:28.5]} 14. Ng3
{[%clk 0:02:26]} 14... h6 {[%clk 0:01:50.9]} 15. Nf5 {[%clk 0:02:21.6]} 15...
Qf6 {[%clk 0:01:46]} 16. Bc2 {[%clk 0:02:20]} 16... c5 {[%clk 0:01:28.7]} 17.
Be3 {[%clk 0:02:04.5]} 17... Bb7 {[%clk 0:01:11]} 18. d5 {[%clk 0:02:00.3]}
18... Bc8 {[%clk 0:00:58.5]} 19. Kh2 {[%clk 0:01:57.7]} 19... Bxf5 {[%clk
0:00:58]} 20. exf5 {[%clk 0:01:58.6]} 20... Ne7 {[%clk 0:00:58.4]} 21. Bxf4
{[%clk 0:01:56.7]} 21... exf4 {[%clk 0:00:58]} 22. Qd2 {[%clk 0:01:53.7]} 22...
Rfe8 {[%clk 0:00:52]} 23. Rad1 {[%clk 0:01:50.3]} 23... c4 {[%clk 0:00:44]} 24.
Qxf4 {[%clk 0:01:47.5]} 24... Bxf2 {[%clk 0:00:41.7]} 25. Re2 {[%clk 0:01:46.9]}
25... Bc5 {[%clk 0:00:40.3]} 26. Rde1 {[%clk 0:01:44.1]} 26... Ra7 {[%clk
0:00:30]} 27. g4 {[%clk 0:01:38.6]} 27... g5 {[%clk 0:00:24.2]} 28. Qd2 {[%clk
0:01:24.6]} 28... Rd8 {[%clk 0:00:20.3]} 29. Kg3 {[%clk 0:01:10.3]} 29... Kg7
{[%clk 0:00:20.3]} 30. Rh1 {[%clk 0:01:08.7]} 30... Ng8 {[%clk 0:00:17.5]} 31.
h4 {[%clk 0:01:07.9]} 31... Re7 {[%clk 0:00:17.7]} 32. hxg5 {[%clk 0:01:06.4]}
32... hxg5 {[%clk 0:00:17.3]} 33. Reh2 {[%clk 0:01:04.5]} 33... Rde8 {[%clk
0:00:15.8]} 34. Qxg5+ {[%clk 0:01:02.3]} 34... Qxg5 {[%clk 0:00:16]} 35. Nxg5
{[%clk 0:01:03.2]} 35... Re3+ {[%clk 0:00:15.5]} 36. Kf4 {[%clk 0:00:56.2]}
36... Nf6 {[%clk 0:00:15.6]} 37. Nf3 {[%clk 0:00:41.3]} 37... Nxd5+ {[%clk
0:00:11.8]} 38. Kg3 {[%clk 0:00:40.1]} 38... Nf6 {[%clk 0:00:10]} 39. g5 {[%clk
0:00:39.5]} 39... Ne4+ {[%clk 0:00:09.6]} 40. Bxe4 {[%clk 0:00:39.5]} 40...
R3xe4 {[%clk 0:00:09.7]} 41. Rh7+ {[%clk 0:00:38.7]} 41... Kf8 {[%clk
0:00:09.7]} 42. f6 {[%clk 0:00:37.8]} 42... Bf2+ {[%clk 0:00:06.3]} 43. Kxf2
{[%clk 0:00:35.4]} 43... Re2+ {[%clk 0:00:06.2]} 44. Kg3 {[%clk 0:00:34.7]}
44... Rg2+ {[%clk 0:00:05.4]} 45. Kxg2 {[%clk 0:00:33.3]} 45... Re2+ {[%clk
0:00:05.6]} 46. Kg3 {[%clk 0:00:33.5]} 46... Rg2+ {[%clk 0:00:05.2]} 47. Kxg2
{[%clk 0:00:33.1]} 47... Ke8 {[%clk 0:00:05.9]} 48. Re1+ {[%clk 0:00:32]} 48...
Kd7 {[%clk 0:00:06]} 49. Rxf7+ {[%clk 0:00:30.5]} 49... Kc6 {[%clk 0:00:06.3]}
50. g6 {[%clk 0:00:31.3]} 50... Kd5 {[%clk 0:00:06.2]} 51. g7 {[%clk 0:00:32.2]}
51... Kc6 {[%clk 0:00:06.6]} 52. g8=Q {[%clk 0:00:33.1]} 52... Kc5 {[%clk
0:00:07.1]} 53. Qc8+ {[%clk 0:00:32.2]} 53... Kb6 {[%clk 0:00:08]} 54. Qb7+
{[%clk 0:00:31.4]} 54... Kc5 {[%clk 0:00:07.9]} 55. b4+ {[%clk 0:00:29.3]} 55...
cxb3 {[%clk 0:00:06.6]} 56. Rc7# {[%clk 0:00:23.4]} 1-0

[Event "*** Titled Tuesday Blitz"]
[Site "Chess.com"]
[Date "2021.03.16"]
[Round "8"]
[White "Srisshhhtea"]
[Black "Oligan22"]
[Result "0-1"]
[WhiteElo "2283"]
[BlackElo "2481"]
[TimeControl "180+1"]
[EndTime "11:28:42 PDT"]
[Termination "Oligan22 won by checkmate"]

1. e4 {[%clk 0:02:58.6]} 1... e5 {[%clk 0:02:59.7]} 2. Nc3 {[%clk 0:02:57.6]}
2... d6 {[%clk 0:02:56.1]} 3. Nb1 {[%clk 0:02:54.1]} 3... Nf6 {[%clk 0:02:51.7]}
4. Nc3 {[%clk 0:02:53.2]} 4... Be7 {[%clk 0:02:50.9]} 5. Be2 {[%clk 0:02:50.6]}
5... c5 {[%clk 0:02:48.8]} 6. Bc4 {[%clk 0:02:47.3]} 6... Nc6 {[%clk 0:02:47.1]}
7. d3 {[%clk 0:02:45.6]} 7... O-O {[%clk 0:02:46.3]} 8. f4 {[%clk 0:02:42.2]}
8... a6 {[%clk 0:02:43]} 9. f5 {[%clk 0:02:32.6]} 9... b5 {[%clk 0:02:41.9]} 10.
Bd5 {[%clk 0:02:29.6]} 10... Bb7 {[%clk 0:02:32.4]} 11. Nf3 {[%clk 0:02:24.3]}
11... b4 {[%clk 0:02:32.7]} 12. Ne2 {[%clk 0:02:20.6]} 12... Nxd5 {[%clk
0:02:32.5]} 13. exd5 {[%clk 0:02:21.5]} 13... Nd4 {[%clk 0:02:32.5]} 14. Nexd4
{[%clk 0:02:15.8]} 14... cxd4 {[%clk 0:02:18]} 15. O-O {[%clk 0:02:13.3]} 15...
Bxd5 {[%clk 0:02:18]} 16. Qe1 {[%clk 0:02:08.7]} 16... Rc8 {[%clk 0:02:04.3]}
17. Qg3 {[%clk 0:01:54.9]} 17... Rxc2 {[%clk 0:01:49.9]} 18. Bh6 {[%clk
0:01:50.7]} 18... Bf6 {[%clk 0:01:50.1]} 19. Ne1 {[%clk 0:01:36.6]} 19... Kh8
{[%clk 0:01:34.2]} 20. Bxg7+ {[%clk 0:01:32]} 20... Bxg7 {[%clk 0:01:34.9]} 21.
Nxc2 {[%clk 0:01:30.3]} 21... Bh6 {[%clk 0:01:12.4]} 22. Qh3 {[%clk 0:01:25]}
22... Rg8 {[%clk 0:01:05.4]} 23. Rf2 {[%clk 0:01:21.3]} 23... Qf6 {[%clk
0:00:53.4]} 24. Nxb4 {[%clk 0:01:17.7]} 24... Bb7 {[%clk 0:00:51.6]} 25. Nc2
{[%clk 0:01:15.7]} 25... Bf4 {[%clk 0:00:34.4]} 26. g3 {[%clk 0:01:05]} 26...
Bg5 {[%clk 0:00:21]} 27. Re1 {[%clk 0:00:57.4]} 27... Rc8 {[%clk 0:00:19.5]} 28.
Qf1 {[%clk 0:00:54.8]} 28... Bd5 {[%clk 0:00:19.2]} 29. b3 {[%clk 0:00:53.2]}
29... a5 {[%clk 0:00:19]} 30. Qe2 {[%clk 0:00:52.1]} 30... Rc5 {[%clk
0:00:18.9]} 31. Rd1 {[%clk 0:00:45.9]} 31... Kg7 {[%clk 0:00:18.8]} 32. h4
{[%clk 0:00:44.1]} 32... Bh6 {[%clk 0:00:18.7]} 33. Kh2 {[%clk 0:00:43.6]} 33...
Kf8 {[%clk 0:00:18.9]} 34. Re1 {[%clk 0:00:40.9]} 34... Qd8 {[%clk 0:00:19]} 35.
Qh5 {[%clk 0:00:38.2]} 35... Bg7 {[%clk 0:00:17.3]} 36. f6 {[%clk 0:00:35.4]}
36... Bxf6 {[%clk 0:00:17.1]} 37. Ref1 {[%clk 0:00:35.8]} 37... Qc7 {[%clk
0:00:10.2]} 38. Ne1 {[%clk 0:00:31.8]} 38... Bg7 {[%clk 0:00:10]} 39. Qxh7
{[%clk 0:00:29.6]} 39... Rc1 {[%clk 0:00:09.1]} 40. Ng2 {[%clk 0:00:27.7]} 40...
Rc2 {[%clk 0:00:08.5]} 41. h5 {[%clk 0:00:26.1]} 41... Rxf2 {[%clk 0:00:08.4]}
42. Rxf2 {[%clk 0:00:27]} 42... Qc1 {[%clk 0:00:07.6]} 43. a4 {[%clk 0:00:21.4]}
43... Bh6 {[%clk 0:00:07.7]} 44. Qh8+ {[%clk 0:00:20.3]} 44... Ke7 {[%clk
0:00:08.1]} 45. Qf6+ {[%clk 0:00:20.7]} 45... Kd7 {[%clk 0:00:08.3]} 46. Qf5+
{[%clk 0:00:20.7]} 46... Ke7 {[%clk 0:00:07.7]} 47. Qf6+ {[%clk 0:00:19.6]}
47... Kd7 {[%clk 0:00:08.1]} 48. Qf5+ {[%clk 0:00:17.5]} 48... Kc7 {[%clk
0:00:08.6]} 49. Qh7 {[%clk 0:00:15.6]} 49... Be3 {[%clk 0:00:08.1]} 50. Rxf7+
{[%clk 0:00:14.8]} 50... Kb6 {[%clk 0:00:07]} 51. Nxe3 {[%clk 0:00:13.2]} 51...
Qh1# {[%clk 0:00:06.2]} 0-1

[Event "*** Titled Tuesday Blitz"]
[Site "Chess.com"]
[Date "2021.03.16"]
[Round "8"]
[White "Lady_Nika"]
[Black "IAgrest"]
[Result "1-0"]
[WhiteElo "2393"]
[BlackElo "2275"]
[TimeControl "180+1"]
[EndTime "11:28:42 PDT"]
[Termination "Lady_Nika won on time"]

1. d4 {[%clk 0:02:59.8]} 1... Nf6 {[%clk 0:02:59.8]} 2. e3 {[%clk 0:02:59.4]}
2... g6 {[%clk 0:03:00.4]} 3. f4 {[%clk 0:02:59.2]} 3... Bg7 {[%clk 0:03:01.3]}
4. Nf3 {[%clk 0:02:59.1]} 4... O-O {[%clk 0:03:01.6]} 5. c3 {[%clk 0:02:59.5]}
5... d6 {[%clk 0:03:00.9]} 6. Be2 {[%clk 0:02:59.7]} 6... Nbd7 {[%clk
0:02:57.5]} 7. O-O {[%clk 0:02:59.4]} 7... Ne4 {[%clk 0:02:55.3]} 8. Nbd2 {[%clk
0:02:59.1]} 8... Nxd2 {[%clk 0:02:51.5]} 9. Bxd2 {[%clk 0:02:58.5]} 9... e5
{[%clk 0:02:51.7]} 10. fxe5 {[%clk 0:02:56.1]} 10... dxe5 {[%clk 0:02:51.8]} 11.
Bc4 {[%clk 0:02:56.4]} 11... e4 {[%clk 0:02:38.3]} 12. Ne1 {[%clk 0:02:54.4]}
12... c5 {[%clk 0:02:33.6]} 13. Nc2 {[%clk 0:02:52.5]} 13... Nb6 {[%clk
0:02:28.5]} 14. Be2 {[%clk 0:02:51]} 14... Be6 {[%clk 0:02:19.6]} 15. b3 {[%clk
0:02:44.1]} 15... cxd4 {[%clk 0:02:14.5]} 16. exd4 {[%clk 0:02:42]} 16... Rc8
{[%clk 0:02:12.4]} 17. Rc1 {[%clk 0:02:35.9]} 17... f5 {[%clk 0:02:09.5]} 18.
Kh1 {[%clk 0:02:21.8]} 18... Kh8 {[%clk 0:02:06.4]} 19. Na3 {[%clk 0:02:10.3]}
19... a6 {[%clk 0:01:52.4]} 20. Qe1 {[%clk 0:02:03.4]} 20... Qe7 {[%clk
0:01:37.3]} 21. Nb1 {[%clk 0:01:59]} 21... Rfd8 {[%clk 0:01:28.8]} 22. Qg3
{[%clk 0:01:58.4]} 22... Bf6 {[%clk 0:01:23.9]} 23. Bf4 {[%clk 0:01:54]} 23...
Bf7 {[%clk 0:01:17.1]} 24. Nd2 {[%clk 0:01:47.3]} 24... Nd5 {[%clk 0:01:16.2]}
25. Be5 {[%clk 0:01:38.7]} 25... Bxe5 {[%clk 0:01:01.7]} 26. dxe5 {[%clk
0:01:36.2]} 26... f4 {[%clk 0:00:54.9]} 27. Rxf4 {[%clk 0:01:34.2]} 27... Nxf4
{[%clk 0:00:54.3]} 28. Qxf4 {[%clk 0:01:34]} 28... Bd5 {[%clk 0:00:47.4]} 29.
Nxe4 {[%clk 0:01:29.9]} 29... Bxe4 {[%clk 0:00:45.6]} 30. Qxe4 {[%clk
0:01:29.5]} 30... Qg5 {[%clk 0:00:45.7]} 31. Rf1 {[%clk 0:01:26.5]} 31... Rxc3
{[%clk 0:00:42.6]} 32. e6 {[%clk 0:01:25]} 32... Re3 {[%clk 0:00:40.4]} 33. Qc4
{[%clk 0:01:21.7]} 33... b5 {[%clk 0:00:33.9]} 34. Qc2 {[%clk 0:01:17.3]} 34...
Rxe6 {[%clk 0:00:27.3]} 35. Bf3 {[%clk 0:01:14.4]} 35... Qe5 {[%clk 0:00:19.6]}
36. h3 {[%clk 0:01:12.4]} 36... b4 {[%clk 0:00:14.7]} 37. Qc4 {[%clk 0:01:11.5]}
37... a5 {[%clk 0:00:14.2]} 38. Qh4 {[%clk 0:01:09.5]} 38... Rd4 {[%clk
0:00:13]} 39. Bg4 {[%clk 0:01:06.1]} 39... Re8 {[%clk 0:00:12.5]} 40. Qh6 {[%clk
0:01:02]} 40... Qg7 {[%clk 0:00:12.1]} 41. Qg5 {[%clk 0:01:00.3]} 41... Rdd8
{[%clk 0:00:10.1]} 42. Qxa5 {[%clk 0:00:59]} 42... Rd2 {[%clk 0:00:10.2]} 43.
Qxb4 {[%clk 0:00:57.8]} 43... Rxa2 {[%clk 0:00:10.3]} 44. Qb5 {[%clk 0:00:56]}
44... Rd8 {[%clk 0:00:09.5]} 45. Qg5 {[%clk 0:00:54]} 45... Rad2 {[%clk
0:00:09.2]} 46. Be6 {[%clk 0:00:52.3]} 46... h6 {[%clk 0:00:08.6]} 47. Qg3
{[%clk 0:00:50.1]} 47... Rd1 {[%clk 0:00:08.4]} 48. Qf3 {[%clk 0:00:45.3]} 48...
Rxf1+ {[%clk 0:00:08.1]} 49. Qxf1 {[%clk 0:00:45.2]} 49... Qe5 {[%clk
0:00:07.5]} 50. Bc4 {[%clk 0:00:45]} 50... Qg7 {[%clk 0:00:05.7]} 51. Qf4 {[%clk
0:00:42.7]} 51... Rd1+ {[%clk 0:00:04.4]} 52. Kh2 {[%clk 0:00:42.7]} 52... Rd8
{[%clk 0:00:04.5]} 53. h4 {[%clk 0:00:41.2]} 53... Qe7 {[%clk 0:00:04.3]} 54.
Kh3 {[%clk 0:00:38.3]} 54... Kg7 {[%clk 0:00:04.2]} 55. Qg4 {[%clk 0:00:36.2]}
55... h5 {[%clk 0:00:03.8]} 56. Qg3 {[%clk 0:00:35.3]} 56... Qf6 {[%clk
0:00:02.4]} 57. Qc7+ {[%clk 0:00:34.2]} 57... Kh6 {[%clk 0:00:02.8]} 58. Qg3
{[%clk 0:00:31.8]} 58... Re8 {[%clk 0:00:02.5]} 59. Qd3 {[%clk 0:00:30.2]} 59...
Re5 {[%clk 0:00:01]} 60. Qd2+ {[%clk 0:00:30.1]} 1-0

[Event "*** Titled Tuesday Blitz"]
[Site "Chess.com"]
[Date "2021.03.16"]
[Round "8"]
[White "Shuvalov"]
[Black "AlexPapasimakopoulos"]
[Result "0-1"]
[WhiteElo "2485"]
[BlackElo "2619"]
[TimeControl "180+1"]
[EndTime "11:28:43 PDT"]
[Termination "AlexPapasimakopoulos won on time"]

1. Nf3 {[%clk 0:02:56.9]} 1... f5 {[%clk 0:02:59.6]} 2. d4 {[%clk 0:02:55.4]}
2... Nf6 {[%clk 0:02:59.4]} 3. g3 {[%clk 0:02:55]} 3... g6 {[%clk 0:02:59.8]} 4.
Bg2 {[%clk 0:02:55.3]} 4... Bg7 {[%clk 0:03:00.4]} 5. O-O {[%clk 0:02:55.6]}
5... O-O {[%clk 0:03:01]} 6. c3 {[%clk 0:02:55.4]} 6... Kh8 {[%clk 0:02:55.6]}
7. Nbd2 {[%clk 0:02:51.1]} 7... Nc6 {[%clk 0:02:50.4]} 8. Re1 {[%clk 0:02:44]}
8... d5 {[%clk 0:02:44.4]} 9. c4 {[%clk 0:02:30.1]} 9... e6 {[%clk 0:02:41.5]}
10. b3 {[%clk 0:02:29]} 10... Ne4 {[%clk 0:02:39.8]} 11. e3 {[%clk 0:02:25.6]}
11... a5 {[%clk 0:02:37.5]} 12. a3 {[%clk 0:02:22.4]} 12... Bd7 {[%clk
0:02:32.8]} 13. Bb2 {[%clk 0:02:22.5]} 13... a4 {[%clk 0:02:16.4]} 14. b4 {[%clk
0:02:21.1]} 14... Na7 {[%clk 0:02:13.4]} 15. Ne5 {[%clk 0:02:16.7]} 15... Nc6
{[%clk 0:02:11.1]} 16. Ndf3 {[%clk 0:02:11.3]} 16... Ne7 {[%clk 0:02:04.9]} 17.
Qc2 {[%clk 0:02:04.5]} 17... Nc6 {[%clk 0:01:43.3]} 18. Red1 {[%clk 0:01:56.1]}
18... Nxe5 {[%clk 0:01:41.9]} 19. Nxe5 {[%clk 0:01:55.3]} 19... c6 {[%clk
0:01:41.4]} 20. Nd3 {[%clk 0:01:44.2]} 20... Nd6 {[%clk 0:01:38.1]} 21. cxd5
{[%clk 0:01:38.7]} 21... exd5 {[%clk 0:01:38.2]} 22. Bf1 {[%clk 0:01:27.4]}
22... Nc4 {[%clk 0:01:34.9]} 23. Bc1 {[%clk 0:01:26]} 23... Re8 {[%clk
0:01:22.4]} 24. Nc5 {[%clk 0:01:22.3]} 24... b5 {[%clk 0:01:21]} 25. Ra2 {[%clk
0:01:17.5]} 25... Bc8 {[%clk 0:01:18]} 26. Bg2 {[%clk 0:01:13.6]} 26... Ra7
{[%clk 0:01:17.8]} 27. Qb1 {[%clk 0:01:06.5]} 27... Qf6 {[%clk 0:01:15.3]} 28.
Re2 {[%clk 0:01:05.8]} 28... Rae7 {[%clk 0:01:15.2]} 29. Qc2 {[%clk 0:01:05.5]}
29... h5 {[%clk 0:01:12.6]} 30. Rd3 {[%clk 0:01:01.3]} 30... h4 {[%clk
0:01:11.9]} 31. f3 {[%clk 0:00:55.2]} 31... Bh6 {[%clk 0:01:05.6]} 32. e4 {[%clk
0:00:41.5]} 32... Bxc1 {[%clk 0:01:04.9]} 33. Qxc1 {[%clk 0:00:35.1]} 33... fxe4
{[%clk 0:01:01]} 34. fxe4 {[%clk 0:00:34.3]} 34... dxe4 {[%clk 0:01:01.1]} 35.
Rxe4 {[%clk 0:00:31.7]} 35... g5 {[%clk 0:00:41.5]} 36. Rf3 {[%clk 0:00:16.4]}
36... Qg7 {[%clk 0:00:37.4]} 37. Qe1 {[%clk 0:00:12.8]} 37... Qxd4+ {[%clk
0:00:33.9]} 38. Kh1 {[%clk 0:00:10.2]} 38... Rxe4 {[%clk 0:00:29.8]} 39. Nxe4
{[%clk 0:00:09.7]} 39... h3 {[%clk 0:00:23.2]} 40. Rf7 {[%clk 0:00:03.8]} 40...
hxg2+ {[%clk 0:00:21.9]} 41. Kxg2 {[%clk 0:00:04.7]} 41... Qxe4+ {[%clk
0:00:19.7]} 42. Qxe4 {[%clk 0:00:04.6]} 42... Rxe4 {[%clk 0:00:20.6]} 43. Rf8+
{[%clk 0:00:04.8]} 43... Kg7 {[%clk 0:00:21.2]} 44. Rxc8 {[%clk 0:00:05.7]}
44... Re6 {[%clk 0:00:21.5]} 45. Kf3 {[%clk 0:00:05.5]} 45... Nxa3 {[%clk
0:00:22.1]} 46. Kg4 {[%clk 0:00:05.2]} 46... Kf6 {[%clk 0:00:22.1]} 47. Rf8+
{[%clk 0:00:03.7]} 47... Ke5 {[%clk 0:00:22.5]} 48. Ra8 {[%clk 0:00:03.8]} 48...
Nc2 {[%clk 0:00:20.6]} 49. Kxg5 {[%clk 0:00:03.9]} 49... Nxb4 {[%clk 0:00:20.7]}
50. h4 {[%clk 0:00:04.3]} 50... Re7 {[%clk 0:00:21.2]} 51. Kg6 {[%clk
0:00:04.1]} 51... Re6+ {[%clk 0:00:20.2]} 52. Kg5 {[%clk 0:00:03.9]} 52... Nd5
{[%clk 0:00:20.6]} 53. h5 {[%clk 0:00:03.9]} 53... Re7 {[%clk 0:00:18.5]} 54.
Kg6 {[%clk 0:00:03.5]} 54... Ne3 {[%clk 0:00:17.7]} 55. h6 {[%clk 0:00:02.9]}
55... Nf5 {[%clk 0:00:18.4]} 0-1